Cogmind - Beta 11.1 @@@ ROGUE MODE // 2022.05.14 @ 21:16:28 Player: Gilly Result: Destroyed by Y-45 Defender with Heavy Assault Rifle Performance ------------- Evolutions (2) 1000 Regions Visited (3) 600 Robots Destroyed (49) 245 Value Destroyed (1249) 1249 Prototype IDs (0) 0 Alien Tech Used (0) 0 Bonus (52) 52 TOTAL SCORE: 3146 Bonus ------- High Alert Combat Kills 52 Cogmind --------- Core Integrity 0/550 Matter 257/300 Energy 56/100 System Corruption 0% Temperature Cool (12) Movement Walking (120) Location -8/Materials Parts ------- > --- POWER (1) -------- (None) > --- PROPULSION (3) --- Aluminum Leg Aluminum Leg Aluminum Leg > --- UTILITY (5) ------ Visual Processing Unit Improved Terrain Scan Processor Light Armor Plating System Shield > --- WEAPON (2) ------- Improved Grenade Launcher Datajack > --- INVENTORY (5) ---- Faulty Improved VTOL Module Powered Hammer Powered Hammer Powered Hammer Peak State ------------ > --- POWER ------------ Light Ion Engine > --- PROPULSION ------- Aluminum Leg Aluminum Leg Aluminum Leg > --- UTILITY ---------- Visual Processing Unit Improved Terrain Scan Processor System Shield > --- WEAPON ----------- Powered Hammer Scythe > --- INVENTORY -------- Improved VTOL Module Powered Hammer Powered Hammer [Rating: 20] Favorites ----------- Power Light Ion Engine Engine Light Ion Engine Propulsion Aluminum Leg Leg Aluminum Leg Wheel Wheel Hover Unit Airjet Flight Unit Flight Unit Utility Visual Processing Unit Device Structural Scanner Storage Large Storage Unit Processor Visual Processing Unit Hackware System Shield Protection Light Armor Plating Weapon Assault Rifle Ballistic Gun Assault Rifle Launcher Rocket Launcher Impact Weapon Powered Hammer Slashing Weapon Scythe Special Melee Weapon Datajack Build | -11 -10 -9 -8 ------- Run | Scr Mat Mat Mat Slots Evolved 4 | . . 2 2 Power . | . . . . Propulsion 1 | . . . 1 Utility 3 | . . 2 1 Weapon . | . . . . Parts Attached 50 | 6 7 16 21 Power 9 | 1 1 4 3 Engine 9 | 1 1 4 3 Core . | . . . . Reactor . | . . . . Propulsion 15 | 2 2 3 8 Treads . | . . . . Leg 9 | 2 . . 7 Wheel 2 | . . 2 . Hover 1 | . . . 1 Flight 3 | . 2 1 . Utility 10 | 1 2 3 4 Device 5 | 1 1 2 1 Storage 1 | . 1 . . Processor 2 | . . 1 1 Hackware 1 | . . . 1 Protection 1 | . . . 1 Artifact . | . . . . Weapon 16 | 2 2 6 6 Energy Gun . | . . . . Energy Cannon . | . . . . Ballistic Gun 5 | 2 2 1 . Ballistic Cannon . | . . . . Launcher 4 | . . 3 1 Special Weapon . | . . . . Impact Weapon 3 | . . . 3 Slashing Weapon 3 | . . 2 1 Piercing Weapon . | . . . . Special Melee Weapon 1 | . . . 1 Unidentified Prototypes . | . . . . Parts Lost 19 | . . 7 12 Power 5 | . . 1 4 Propulsion 4 | . . 1 3 Utility 5 | . . 2 3 Weapon 5 | . . 3 2 Highest Loss Streak 5 | . . 3 5 To Critical Strikes 1 | . . . 1 Average Slot Usage (%) 81 | . 98 82 66 Engine 8 | . 14 8 5 Leg 12 | . 20 . 19 Wheel 1 | . . 3 . Flight 5 | . 7 10 . Device 17 | . 17 30 3 Storage 2 | . 9 . . Processor 9 | . . 11 14 Hackware 2 | . . . 6 Ballistic Gun 10 | . 28 8 . Launcher 2 | . . 6 . Impact Weapon 3 | . . . 10 Slashing Weapon 3 | . . 4 5 Naked Turns . | . . . . Heaviest Build 28 | 8 28 15 15 Greatest Support 30 | 20 20 20 30 Greatest Overweight (x) 4 | . 1 3 4 Average Overweight (x) . | . . 1 . Largest Inventory Capacity 15 | 5 15 5 5 Average Capacity 6 | 5 11 5 5 Most Carried 12 | 5 12 4 5 Average Carried 2 | 3 6 1 1 Final Capacity 5 | 5 5 5 5 Final Carried 5 | 5 5 3 4 Class Distribution -------------------- 37% | Scavenger-Mutant 35% | Mutant 27% | Infiltrator-Mutant Dominant Class ---------------- Mutant | -10/Materials Infiltrator-Mutant | -9/Materials Scavenger-Mutant | -8/Materials Resources | -11 -10 -9 -8 ----------- Run | Scr Mat Mat Mat Matter Collected 1042 | 280 185 316 261 Remotely . | . . . . Salvage Created 1441 | 78 230 453 680 Parts 91 | 9 21 29 32 Haulers Intercepted . | . . . . Recyclers Shooed 1 | . 1 . . Parts Field Recycled . | . . . . Retrieved Matter . | . . . . Parts Self-Destructed . | . . . . Prevented . | . . . . Kills | -11 -10 -9 -8 ------- Run | Scr Mat Mat Mat Combat Hostiles Destroyed 32 | 1 7 12 12 Melee 15 | . . 4 11 Guns 10 | 1 7 2 . AOE 7 | . . 6 1 Classes Destroyed 8 | 2 2 4 . Worker 5 | . . 1 4 Builder 3 | . . 2 1 Tunneler 5 | 2 . 1 2 Operator 1 | . . 1 . Watcher 3 | . 1 1 1 Swarmer 8 | . 3 3 2 Grunt 19 | 1 4 7 7 Sentry 5 | . . 2 3 Best Kill Streak 8 | 2 3 8 4 Combat Bots Only 4 | 1 3 4 3 Max Kills in Single Turn 2 | 1 1 2 1 Gunslinging . | . . . . Exploded 2 | . . 2 1 Melee 1 | . . 1 1 Uniques/NPCs Destroyed . | . . . . Combat | -11 -10 -9 -8 -------- Run | Scr Mat Mat Mat Damage Taken 2669 | 11 310 902 1446 Core 976 | . 49 369 558 Absorbed by Shields . | . . . . Regen/Repaired (Parts) 89 | . . . 89 Core Remaining (%) 62 | 100 80 7 . Volleys Fired 72 | 5 26 40 1 Largest 2 | 2 2 2 1 Hottest 40 | 40 40 40 36 Shots Fired 121 | 10 52 58 1 Gun 107 | 10 52 45 . Cannon . | . . . . Launcher 14 | . . 13 1 Special . | . . . . Kinetic 107 | 10 52 45 . Thermal . | . . . . Explosive 14 | . . 13 1 Electromagnetic . | . . . . Robot Hit Streak 11 | 2 5 11 2 Robot Miss Streak 5 | 1 5 2 . Penetration Max . | . . . . Secondary Targets 1 | . 1 . . Max Gunslinging Chain 1 | . 1 . . Shots Hit Robots 112 | 5 30 27 50 Core Hits 53 | 4 13 22 14 Critical Kills . | . . . . Critical Parts Destroyed 7 | . . . 7 Critical Strikes 8 | . . . 8 Smash 7 | . . . 7 Sever 1 | . . . 1 Melee Attacks 83 | . . 8 75 Impact 22 | . . . 22 Slashing 59 | . . 8 51 Piercing . | . . . . Sneak Attacks 13 | . . 2 11 Combat Hostiles . | . . . . Follow-up Attacks 7 | . . . 7 Damage Inflicted 3479 | 67 386 1123 1903 Guns 598 | 67 374 157 . Cannons . | . . . . Explosions 679 | . . 657 22 Melee 2190 | . . 309 1881 Ramming 12 | . 12 . . Kinetic 598 | 67 374 157 . Thermal . | . . . . Explosive 679 | . . 657 22 Electromagnetic . | . . . . Impact 593 | . . . 593 Slashing 1597 | . . 309 1288 Piercing . | . . . . Highest Corruption . | . . . . Average Corruption . | . . . . Corruption Purged . | . . . . Corruption Blocked . | . . . . Overload Shots . | . . . . Overflow Damage 565 | . . 32 533 Projectiles . | . . . . Explosions 9 | . . 9 . Melee 556 | . . 23 533 Knockbacks 2 | . . . 2 Impact 2 | . . . 2 Kinetic . | . . . . Secondary . | . . . . Self-Inflicted Damage 54 | . 4 50 . Shots 2 | . . 2 . Rammed 1 | . 1 . . Targets Rammed 2 | . 2 . . Kicked 1 | . 1 . . Crushed . | . . . . Highest Temperature 15 | . 1 15 5 Average Temperature 3 | . 1 6 3 Received Heat Transfer 1335 | 6 120 345 864 Siege Activations . | . . . . Robots Corrupted . | . . . . Combat Hostiles . | . . . . Parts Fried 9 | . . . 9 Impact Corruptions 15 | . . . 15 Robots Melted . | . . . . Combat Hostiles . | . . . . Parts Melted . | . . . . Heat Transferred . | . . . . Parts Sabotaged . | . . . . Parts Stolen . | . . . . Parts Stripped . | . . . . Power Chain Reactions . | . . . . Missiles Intercepted . | . . . . Alert | -11 -10 -9 -8 ------- Run | Scr Mat Mat Mat Peak Influence 563 | 33 155 563 399 Initial 189 | . 21 65 189 Average 208 | 10 68 314 241 Maximum Alert Level 2 | . . 2 1 Low Security (%) 58 | 100 100 40 37 Level 1 23 | . . 6 62 Level 2 18 | . . 53 . Level 3 . | . . . . Level 4 . | . . . . Level 5 . | . . . . High Security . | . . . . Max Security . | . . . . Squads Dispatched 6 | . 3 2 1 Investigation 3 | . 1 1 1 Extermination . | . . . . Reinforcement 3 | . 2 1 . Assault . | . . . . Garrison . | . . . . Intercept . | . . . . Searches Triggered . | . . . . Construction Impeded . | . . . . Haulers Reinforced . | . . . . Active Scanning Responses . | . . . . Cargo Convoy Interrupts . | . . . . Stealth | -11 -10 -9 -8 --------- Run | Scr Mat Mat Mat Distress Signals 7 | . 1 1 5 Communications Jammed . | . . . . Distress Signals . | . . . . Times Spotted 59 | 1 13 24 21 Peak Tracking Total 4 | 1 3 4 4 Tactical Retreats 8 | . 1 4 3 Traps | -11 -10 -9 -8 ------- Run | Scr Mat Mat Mat Traps Triggered 3 | . 1 1 1 Indirectly . | . . . . Trap Hack Attempts . | . . . . Triggered . | . . . . Disarmed . | . . . . Reprogrammed . | . . . . Reused . | . . . . Traps Extracted . | . . . . Installed . | . . . . Triggered . | . . . . Machines | -11 -10 -9 -8 ---------- Run | Scr Mat Mat Mat Machines Disabled 5 | . 1 3 1 Max in Single Turn 1 | . 1 1 1 Machines Sabotaged . | . . . . Garrisons Compromised . | . . . . Overloaded Fab Kills . | . . . . Hacking | -11 -10 -9 -8 --------- Run | Scr Mat Mat Mat Machines Accessed 4 | . 1 1 2 Terminals 2 | . 1 . 1 Fabricators . | . . . . Repair Stations 1 | . . . 1 Recycling Units 1 | . . 1 . Scanalyzers . | . . . . Garrison Access . | . . . . Total Hacks 9 | . 2 1 6 Successful 7 | . 2 1 4 Failed 2 | . . . 2 Catastrophic . | . . . . Database Lockouts . | . . . . Manual . | . . . . Terminals 5 | . 2 . 3 Fabricators . | . . . . Repair Stations 3 | . . . 3 Recycling Units 1 | . . 1 . Scanalyzers . | . . . . Garrison Access . | . . . . Terminal Hacks 4 | . 2 . 2 Record 1 | . 1 . . Unreport Threat 1 | . . . 1 Recall Reinforcements 1 | . . . 1 Zone Layout 1 | . 1 . . Fabricator Hacks . | . . . . Repair Station Hacks 2 | . . . 2 Scan Component 1 | . . . 1 Repair 1 | . . . 1 Recycling Unit Hacks 1 | . . 1 . Report Inventory 1 | . . 1 . Scanalyzer . | . . . . Garrison Access Hacks . | . . . . Unauthorized Hacks . | . . . . Terminals . | . . . . Fabricators . | . . . . Repair Stations . | . . . . Recycling Units . | . . . . Scanalyzers . | . . . . Garrison Access . | . . . . Data Cores Recovered 1 | . . 1 . Used . | . . . . Hacking Detections 2 | . . 1 1 Full Trace Events . | . . . . Feedback Events . | . . . . Feedback Blocked . | . . . . Robot Schematics Acquired . | . . . . Robots Built . | . . . . Authchips . | . . . . Time . | . . . . Total Robot Build Rating . | . . . . Part Schematics Acquired . | . . . . Parts Built . | . . . . Authchips . | . . . . Time . | . . . . Total Part Build Rating . | . . . . Parts Repaired 1 | . . . 1 Time 26 | . . . 26 Parts Recycled . | . . . . Recycled Matter . | . . . . Retrieved Matter . | . . . . Retrieved Components . | . . . . Parts Scanalyzed . | . . . . Part Schematics Acquired . | . . . . Parts Damaged . | . . . . Bothacking | -11 -10 -9 -8 ------------ Run | Scr Mat Mat Mat Used RIF Installer . | . . . . Robots Hacked 1 | . . . 1 Non-combat 1 | . . . 1 Combat . | . . . . Robot Hacks Applied 1 | . . . 1 parse_system 1 | . . . 1 Relay Couplers Released . | . . . . Fabnet Peak Effective % . | . . . . Robots Rewired . | . . . . Allies Hacked . | . . . . Hacks Repelled . | . . . . Allies | -11 -10 -9 -8 -------- Run | Scr Mat Mat Mat Total Allies . | . . . . Largest Group . | . . . . Highest-Rated Group . | . . . . Highest-Rated Ally . | . . . . Total Orders . | . . . . Ally Attacks . | . . . . Total Damage . | . . . . Kills . | . . . . Allies Corrupted . | . . . . Allies Melted . | . . . . Intel | -11 -10 -9 -8 ------- Run | Scr Mat Mat Mat Robot Analysis Total . | . . . . Derelict Logs Recovered . | . . . . Drone Launches . | . . . . Drone Recoveries . | . . . . Exploration | -11 -10 -9 -8 ------------- Run | Scr Mat Mat Mat Turns Passed 2369 | 148 598 813 810 Spaces Moved 1212 | 95 313 397 407 Core 115 | 23 . 53 39 Treads . | . . . . Legs 629 | 72 206 . 351 Wheels 95 | . . 95 . Hover 1 | . . . 1 Flight 372 | . 107 249 16 Fastest Speed 50 | 50 117 50 50 Average Speed 138 | 103 156 144 127 Slowest Speed 275 | 120 190 275 275 Overloaded Moves . | . . . . Propulsion Burnouts . | . . . . Robots Hopped . | . . . . Cave-ins Triggered . | . . . . Exploration Rate (%) 30 | 5 45 33 37 Regions Visited 3 Branch Regions . Pre-discovered Areas . | . . . . Known Exits Taken . | . . . . Unknown Exits Taken 3 | 1 1 1 . Scrap Searched . | . . . . Spaces Dug . | . . . . Terrain Destroyed 125 | . . 120 5 Melee . | . . . . Projectile . | . . . . AOE 125 | . . 120 5 Terrain Rammed . | . . . . Walls Destroyed . | . . . . Machines Disabled . | . . . . Actions | -11 -10 -9 -8 --------- Run | Scr Mat Mat Mat Total 1667 | 134 368 568 597 Wait 185 | 19 . 87 79 Move 1209 | 94 312 396 407 Hop . | . . . . Pick Up 54 | 10 11 13 20 Fast Attach 2 | 1 1 . . Attach 36 | 5 1 12 18 Detach 1 | . . . 1 Swap 12 | . 5 4 3 Drop 22 | . 10 8 4 Fire 72 | 5 26 40 1 Melee 72 | . . 8 64 Ram 1 | . 1 . . Kick 1 | . 1 . . Crush . | . . . . Escape Stasis . | . . . . Rewire . | . . . . Trap . | . . . . Miscellaneous . | . . . . Route ------- -11/Scrapyard -10/Materials -9/Materials (discovered 2 exits: *Mat / [*Min]) -8/Materials (discovered 1 exit: [*Sto]) History --------- Turn | Location | Event 2 | -11/Scrapyard | Met Revision 17 68 | -11/Scrapyard | Discovered new exit (range 8) 149 | -11/Scrapyard | Entered Materials 316 | -10/Materials | Build established: Mutant 718 | -10/Materials | Discovered new exit (range 15) 747 | -10/Materials | Entered another Materials area 747 | -9/Materials | Evolved 2 slots: Utility x2 883 | -9/Materials | Build established: Scavenger-Mutant 980 | -9/Materials | Core integrity fell below 50% 988 | -9/Materials | Discovered new exit (range 7) 1014 | -9/Materials | Lost 3 parts (1u2w) 1146 | -9/Materials | Core integrity fell below 20% 1285 | -9/Materials | Build established: Infiltrator-Mutant 1489 | -9/Materials | Discovered new exit (range 15) 1560 | -9/Materials | Entered another Materials area 1560 | -8/Materials | Evolved 2 slots: Propulsion x1, Utility x1 1680 | -8/Materials | Lost 5 parts (1p1n2u1w) 1689 | -8/Materials | Core integrity fell below 50% 1743 | -8/Materials | Lost 3 parts (1p1n1w) 1858 | -8/Materials | Core integrity fell below 20% 2166 | -8/Materials | Build established: Scavenger-Mutant 2170 | -8/Materials | Repaired Aluminum Leg 2370 | -8/Materials | Discovered new exit (range 10) 2370 | -8/Materials | Destroyed by Y-45 Defender with Heavy Assault Rifle Last Messages --------------- Acquired Imp. Grenade Launcher. Y-45 Defender destroyed. Processing Tank disabled. Acquired Lgt. Armor Plating. K-01 Serf collects debris. T-07 Excavator is excavating. K-01 Serf collects debris. T-07 Excavator is excavating. Sneak attack on K-01 Serf. Jacked K-01 Serf... Right-click on available options for more info. Keyboard players can use Shift-a~z. >>find_chute No applicable chute records found in memory. Sneak attack on K-01 Serf. Jacked K-01 Serf... >>parse_system Reading system data... K-01 Serf collects debris. EXIT=FOUND Map ----- +----------------------------------------------------+ | ################???????????????# #????? | | !################# #??### | | % % %% / # """ """ #? | | ! % [ ######## """ # """ """ #? | | ########### %##??????# """ # """ """ # ?? | | ##?????# =##??????# """ # """ """ # !??? | | ##?????# =##??????# + + ???? | | ##?????# ##??????# """ # #????? | | ##?????# ##??????# """ # "T" #????? | | ##?????# ##??????# """ ########## #????? | | ######?# ##??????# #????????# #????? | | +########?# ##??????##########????????# #####? | | %= ##?# ##????????????????????????# [[#? | | ! ##?# ##????????????????????????# [[#? | | ##?# ##????????????????????????# #? | | """ ##?# ##????????????????????????# / #? | | """ ##?# ##????????????????????????# !!#? | | """ #### ##???????????????########## !!#? | | #### ##???????????????# * / /# #####? | | % ##???????????????# # #????? | | ##????#####??????# #????? | | ####?##!!!!##????# #????? | | #####+####+#######?#! !#????# [% #????? | | # #[ ##?#! !#????# " #????? | | # """ # ##????# ###### " #????? | | # """ # ##????# @ + " #????? | | # """ # ##????# ###### # #????? | | # # ##????# #????##### #### #????? | | # # ##????# #????????# ?# #????? | | # #########????# #?????????? +????? | | # "T" #########????# #?????????? # #????? | | # ?"" ##???????????# #???????????### #????? | | ##?########??????????? ?????????????? #????? | | ##?########??????????# ?????????????? ????? | | ##???????????????????# Y! ?????????????? ????? | | ##???????????????????# ?????????????? ????? | | ##???????????????????# ??????????????####????? | | ##???????????????????######??????????????????????? | | ##???????????????????????????????????????????????? | | ##???????????????????????????????????????????????? | | | | | | | | | | | | | | | | | | | | | +----------------------------------------------------+ Best States ------------- Heat Dissipation 31 Energy Generation 14 Energy Capacity 265 Matter Stores 300 Matter Capacity 300 Sight Range 18 Terrain Scan Range 16 Terrain Scan Density 110 ECM Strength 1 Armor Coverage 150 Evasion (%) 55 Recoil Reduction 4 Defensive Hacking 10 Item Schematics ----------------- None Robot Schematics ------------------ None Fabricated ------------ Nothing Alien Tech Used ----------------- None Achievements -------------- Close Call Everything Is Under Control Oops Challenges ------------ None Game ------ Seed WeightStructuralProcessor Manual? 0 Play Time 00:36:07 Cumulative 2.6 hours Start 2022.05.14 @ 20:40:23 End 2022.05.14 @ 21:16:28 Sessions 1 Manual Loads 0 Difficulty Rogue Special Mode None Game No. 3 Rogue 3 Adventurer 0 Explorer 0 Win Type - Total 0 Types 0/0/0/0/0/0/0/0/0 Lore% 1 Gallery% 7 Achievement% 7 Wizard Run 0 Options --------- ASCII 0 Keyboard 0 Movement Mouse Keybinds 0 Fullscreen 2 Font 18/SmallcapsGlow Map View 76x50 Tactical HUD 0 Map Filters NONE Filters NONE Steam 1 RUN: 772bac0d-7d9c-4fa4-bc14-b0b24bba03e5